fUSD/lending_fUSD_20241222
["ID","MTS","AMOUNT","RATE_DAILY","PERIOD"]
[346289408,1734874238930,-150.0,0.000187,2]
[346289409,1734874238940,-424.896542,0.00018767,2]
[346289410,1734874238949,-10564.03653093,0.00018775,2]
[346289411,1734874238959,-770.54,0.00018841,2]
[346289412,1734874238969,-437.0,0.00018841,2]
[346289413,1734874238978,-437.0,0.00018841,2]
[346289414,1734874238987,-770.54,0.00018841,2]
[346289415,1734874238996,-150.0,0.00018895,2]
[346289416,1734874239006,-500.0,0.00018904,2]
[346289417,1734874239015,-227.69,0.00018936,2]
[346289418,1734874239024,-437.0,0.00018941,2]
[346289419,1734874239034,-770.54,0.00018941,2]
[346289420,1734874239047,-919.93,0.0001895,2]
[346289421,1734874239056,-1000.0,0.00018978,2]
[346289422,1734874239065,-152.86,0.0001899,2]
[346289423,1734874239075,-56146.72269418,0.00019,2]
[346289424,1734874239085,-376.426,0.00019,2]
[346289425,1734874239094,-756.83359184,0.00019,2]
[346289426,1734874239104,-873.6,0.00019041,2]
[346289427,1734874239113,-157.35871216,0.00019041,2]
[346289428,1734874239123,-2000.0,0.00019046,2]
[346289429,1734874239132,-21370.87,0.00019072,2]
[346289430,1734874239142,-151.0,0.00019085,2]
[346289431,1734874239151,-10564.03653093,0.00019087,2]
[346289432,1734874239160,-150.0,0.0001909,2]
[346289433,1734874239170,-2010.0,0.000191,2]
[346289434,1734874239179,-635.0,0.000191,2]
[346289435,1734874239190,-1265.0,0.000191,2]
[346289436,1734874239199,-3886.0,0.000191,2]
[346289437,1734874239208,-150.0,0.000191,2]
[346289438,1734874239218,-212.033,0.000191,2]
[346289439,1734874239226,-1170.0,0.000191,2]
[346289440,1734874239236,-424.896542,0.00019109,2]
[346289441,1734874239245,-295.31036526,0.00019129,2]
[346289442,1734874239255,-152.86,0.00019168,2]
[346289443,1734874239264,-1000.0,0.00019178,4]
[346289444,1734874239273,-1000.0,0.00019178,4]
[346289445,1734874239282,-1000.0,0.00019178,4]
[346289446,1734874239291,-1000.0,0.00019178,4]
[346289447,1734874239300,-1000.0,0.00019178,4]
[346289448,1734874239310,-1000.0,0.00019178,4]
[346289449,1734874239319,-1000.0,0.00019178,4]
[346289450,1734874239328,-1000.0,0.00019178,4]
[346289451,1734874239337,-1000.0,0.00019178,4]
[346289452,1734874239346,-1000.0,0.00019178,4]
[346289453,1734874239356,-1000.0,0.00019178,4]
[346289454,1734874239365,-1000.0,0.00019178,4]
[346289455,1734874239374,-1000.0,0.00019178,4]
[346289456,1734874239384,-1000.0,0.00019178,4]
[346289457,1734874239393,-1000.0,0.00019178,4]
[346289458,1734874239403,-1000.0,0.00019178,4]
[346289459,1734874239412,-1000.0,0.00019178,4]
[346289460,1734874239422,-1000.0,0.00019178,4]
[346289461,1734874239431,-1000.0,0.00019178,4]
[346289462,1734874239441,-1000.0,0.00019178,4]
[346289463,1734874239450,-1000.0,0.00019178,4]
[346289464,1734874239459,-805.74525284,0.00019178,4]
[346289465,1734874239469,-547.09,0.00019178,2]
[346289466,1734874239478,-500.0,0.00019178,2]
[346289467,1734874239488,-545.27,0.00019178,2]
[346289468,1734874239497,-500.0,0.00019178,2]
[346289469,1734874239507,-739.75,0.00019178,2]
[346289470,1734874239516,-5171.68,0.00019178,2]
[346289471,1734874239525,-500.0,0.00019178,2]
[346289472,1734874239535,-3897.24,0.00019178,2]
[346289473,1734874239545,-1225.96,0.00019178,2]
[346289474,1734874239554,-1950.52,0.00019178,2]
[346289475,1734874239564,-10349.0,0.00019178,2]
[346289476,1734874239573,-3027.63,0.00019178,2]
[346289477,1734874239582,-646.8,0.00019178,2]
[346289478,1734874239592,-1634.13,0.00019178,2]
[346289479,1734874239601,-4410.13,0.00019178,2]
[346289480,1734874239610,-500.0,0.00019178,2]
[346289481,1734874239620,-500.0,0.00019178,2]
[346289482,1734874239629,-500.0,0.00019178,2]
[346289483,1734874239638,-2890.97,0.00019178,2]
[346289484,1734874239648,-4199.57,0.00019178,2]
[346289485,1734874239657,-500.0,0.00019178,2]
[346289486,1734874239667,-500.0,0.00019178,2]
[346289487,1734874239677,-500.0,0.00019178,2]
[346289488,1734874239688,-1387.99,0.00019178,2]
[346289489,1734874239697,-500.0,0.00019178,2]
[346289490,1734874239707,-500.0,0.00019178,2]
[346289491,1734874239717,-500.0,0.00019178,2]
[346289492,1734874239726,-517.91,0.00019178,2]
[346289493,1734874239736,-174.15,0.00019178,2]
[346289494,1734874239746,-18085.53,0.00019178,2]
[346289495,1734874239756,-500.0,0.00019178,2]
[346289496,1734874239766,-500.0,0.00019178,2]
[346289497,1734874239775,-500.0,0.00019178,2]
[346289498,1734874239785,-553.07,0.00019178,2]
[346289499,1734874239795,-500.0,0.00019178,2]
[346289500,1734874239805,-500.0,0.00019178,2]
[346289501,1734874239814,-507.94696116,0.00019178,2]
[346289502,1734874239824,-1032.84,0.00019178,2]
[346289503,1734874239833,-500.0,0.00019178,2]
[346289504,1734874239843,-294.25470679,0.00019178,2]
[346289505,1734874239852,-890.07,0.00019178,2]
[346289506,1734874239861,-500.0,0.00019178,2]
[346289507,1734874239871,-500.0,0.00019178,2]
[346289508,1734874239881,-500.0,0.00019178,2]
[346289509,1734874239891,-1000.0,0.00019178,2]
[346289510,1734874239900,-728.0,0.00019178,2]
[346289511,1734874239911,-162.97,0.00019246,30]
[346289512,1734874239920,-150.0,0.00019285,4]
[346289513,1734874239929,-159.89696941,0.00019288,2]
[346289514,1734874239939,-159.89696943,0.00019288,2]
[346289515,1734874239949,-157.35871216,0.00019288,2]
[346289516,1734874239959,-152.86,0.0001929,2]
[346289517,1734874240153,-1316.7971,0.00019297,2]
[346289518,1734874240162,-211296.64889594,0.000193,2]
[346289519,1734874240171,-1000.0,0.00019316,2]
[346289520,1734874240181,-152.86,0.0001932,2]
[346289521,1734874240191,-80000.0,0.0001933,2]
[346289522,1734874240200,-1089.84,0.0001937,2]
[346289523,1734874240209,-365.0,0.0001937,2]
[346289524,1734874240218,-436.28,0.0001937,2]
[346289525,1734874240227,-305.16,0.0001937,2]
[346289526,1734874240236,-318.08,0.0001937,2]
[346289527,1734874240245,-150.33,0.0001937,2]
[346289528,1734874240254,-977.18,0.0001937,2]
[346289529,1734874240266,-436.28,0.0001937,2]
[346289530,1734874240275,-977.18,0.0001937,2]
[346289531,1734874240284,-611.82,0.0001937,2]
[346289532,1734874240294,-977.18,0.0001937,2]
[346289533,1734874240303,-152.86,0.00019387,2]
[346289534,1734874240312,-152.86,0.00019387,2]
[346289535,1734874240321,-357.62221438,0.00019389,2]
[346289536,1734874240331,-424.896542,0.00019389,2]
[346289537,1734874240340,-152.86,0.0001939,2]
[346289538,1734874240349,-152.86,0.0001939,2]
[346289539,1734874240359,-1925.60107403,0.0001939,2]
[346289540,1734874240368,-281464.05707426,0.00019397,2]
[346289541,1734874240378,-9759.0,0.00019397,2]
[346289542,1734874240387,-3258.3079,0.000194,2]
[346289543,1734874240395,-231610.95833662,0.000194,2]
[346289544,1734874240405,-10564.03653093,0.000194,2]
[346289545,1734874240414,-8437.58613568,0.000194,2]
[346289546,1734874240423,-174.14235606,0.000194,2]
[346289547,1734874240433,-174.14235606,0.000194,2]
[346289548,1734874240444,-174.14235606,0.000194,2]
[346289549,1734874240452,-174.14235606,0.000194,2]
[346289550,1734874240461,-174.14235606,0.000194,2]
[346289551,1734874240471,-174.14235606,0.000194,2]
[346289552,1734874240480,-174.14235606,0.000194,2]
[346289553,1734874240489,-174.14235606,0.000194,2]
[346289554,1734874240499,-174.14235606,0.000194,2]
[346289555,1734874240508,-174.14235606,0.000194,2]
[346289556,1734874240517,-174.14235606,0.000194,2]
[346289557,1734874240527,-174.14235606,0.000194,2]
[346289558,1734874240536,-174.14235606,0.000194,2]
[346289559,1734874240545,-174.14235606,0.000194,2]
[346289560,1734874240554,-174.14235606,0.000194,2]
[346289561,1734874240563,-174.14235606,0.000194,2]
[346289562,1734874240572,-174.14235606,0.000194,2]
[346289563,1734874240582,-174.14235606,0.000194,2]
[346289564,1734874240591,-174.14235606,0.000194,2]
[346289565,1734874240600,-174.14,0.000194,2]
[346289566,1734874240609,-188.85964021,0.000194,2]
[346289567,1734874240619,-181.26655815,0.000194,2]
[346289568,1734874240628,-421.10247844,0.000194,2]
[346289569,1734874240638,-193.09384646,0.00019424,3]
[346289570,1734874240647,-9375.32250276,0.00019442,2]
[346289571,1734874240656,-9375.32250276,0.00019446,2]
[346289572,1734874240666,-10769.65122378,0.00019446,2]
[346289573,1734874240675,-4687.66125137,0.0001945,2]
[346289575,1734874240684,-5194.41337268,0.00019451,2]
[346289576,1734874240697,-547.09,0.00019452,2]
[346289577,1734874240707,-500.0,0.00019452,2]
[346289578,1734874240716,-545.27,0.00019452,2]
[346289579,1734874240726,-500.0,0.00019452,2]
[346289580,1734874240737,-739.75,0.00019452,2]
[346289581,1734874240747,-5171.68,0.00019452,2]
[346289582,1734874240756,-3897.24,0.00019452,2]
[346289583,1734874240765,-1225.96,0.00019452,2]
[346289584,1734874240775,-1950.52,0.00019452,2]
[346289585,1734874240784,-10349.0,0.00019452,2]
[346289586,1734874240792,-3027.63,0.00019452,2]
[346289587,1734874240802,-646.8,0.00019452,2]
[346289588,1734874240812,-1634.13,0.00019452,2]
[346289589,1734874240821,-4410.13,0.00019452,2]
[346289590,1734874240830,-500.0,0.00019452,2]
[346289591,1734874240839,-500.0,0.00019452,2]
[346289592,1734874240848,-500.0,0.00019452,2]
[346289593,1734874240857,-2890.97,0.00019452,2]
[346289594,1734874240866,-4199.57,0.00019452,2]
[346289595,1734874240876,-500.0,0.00019452,2]
[346289596,1734874240886,-1387.99,0.00019452,2]
[346289597,1734874240896,-500.0,0.00019452,2]
[346289598,1734874240905,-500.0,0.00019452,2]
[346289599,1734874240914,-517.91,0.00019452,2]
[346289600,1734874240923,-18085.53,0.00019452,2]
[346289601,1734874240933,-500.0,0.00019452,2]
[346289602,1734874240944,-414.45677532,0.00019452,2]
[346289603,1734874240953,-500.0,0.00019452,2]
[346289604,1734874240962,-553.07,0.00019452,2]
[346289605,1734874240972,-500.0,0.00019452,2]
[346289606,1734874240981,-500.0,0.00019452,2]
[346289607,1734874240991,-1032.84,0.00019452,2]
[346289608,1734874241001,-510.95945193,0.00019452,2]
[346289609,1734874241011,-500.0,0.00019452,2]
[346289610,1734874241020,-890.07,0.00019452,2]
[346289611,1734874241030,-500.0,0.00019452,2]
[346289612,1734874241043,-500.0,0.00019452,2]
[346289613,1734874241053,-10769.65122378,0.00019452,2]
[346289614,1734874241063,-4687.66125137,0.00019456,2]
[346289615,1734874241073,-4687.66125137,0.00019456,2]
[346289616,1734874241083,-2153.93024476,0.00019462,2]
[346289617,1734874241092,-10769.65122378,0.00019462,2]
[346289618,1734874241101,-2153.93024476,0.00019463,2]
[346289619,1734874241111,-10769.65122378,0.00019463,2]
[346289620,1734874241122,-10769.65122378,0.00019463,2]
[346289621,1734874241131,-5194.41337268,0.00019465,2]
[346289622,1734874241140,-4687.66125137,0.00019467,2]
[346289623,1734874241149,-9375.32250276,0.00019468,2]
[346289624,1734874241159,-165.48550035,0.00019473,2]
[346289625,1734874241169,-500.0,0.00019473,2]
[346289626,1734874241178,-162.29978398,0.00019473,2]
[346289627,1734874241188,-583.53894794,0.00019473,2]
[346289628,1734874241197,-300.1390087,0.00019473,2]
[346289629,1734874241207,-246.96249069,0.00019473,2]
[346289630,1734874241216,-500.0,0.00019473,2]
[346289631,1734874241225,-500.0,0.00019473,2]
[346289632,1734874241235,-500.78619416,0.00019473,2]
[346289633,1734874241244,-501.49009623,0.00019473,2]
[346289634,1734874241253,-357.62221434,0.00019474,2]
[346289635,1734874241263,-5194.41337268,0.00019476,2]
[346289636,1734874241273,-5194.41337268,0.00019478,2]
[346289637,1734874241283,-7334.0,0.00019479,2]
[346289638,1734874241293,-231.58781589,0.00019479,4]
[346289639,1734874241302,-230.42880097,0.00019479,4]
[346289640,1734874241311,-5194.41337268,0.0001948,2]
[346289641,1734874241321,-4687.66125137,0.0001948,2]
[346289642,1734874241330,-152.86,0.0001948,2]
[346289643,1734874241339,-152.86,0.0001948,2]
[346289644,1734874241349,-152.86,0.0001948,2]
[346289645,1734874241359,-152.86,0.0001948,2]
[346289646,1734874241369,-2153.93024476,0.00019481,2]
[346289647,1734874241379,-9375.32250276,0.00019481,2]
[346289648,1734874241388,-2153.93024476,0.00019481,2]
[346289649,1734874241398,-10769.65122378,0.00019486,2]
[346289650,1734874241407,-2153.93024476,0.00019486,2]
[346289651,1734874241416,-2153.93024476,0.00019488,2]
[346289652,1734874241426,-9375.32250276,0.00019489,2]
[346289653,1734874241436,-9375.32250276,0.00019489,2]
[346289654,1734874241448,-152.86,0.00019489,2]
[346289655,1734874241458,-713.32,0.00019489,2]
[346289656,1734874241467,-500.0,0.00019489,2]
[346289657,1734874241477,-483.528138,0.00019489,2]
[346289658,1734874241486,-618.03,0.00019489,2]
[346289659,1734874241496,-169.881691,0.00019489,2]
[346289660,1734874241505,-153.001665,0.00019489,2]
[346289661,1734874241515,-659.245241,0.00019489,2]
[346289662,1734874241524,-7500.0,0.00019489,2]
[346289663,1734874241534,-7500.0,0.00019489,2]
[346289664,1734874241543,-1369.77,0.00019489,2]
[346289665,1734874241553,-500.0,0.00019489,2]
[346289666,1734874241562,-157.658738,0.00019489,2]
[346289667,1734874241571,-164.63,0.00019489,2]
[346289668,1734874241581,-500.0,0.00019489,2]
[346289669,1734874241590,-3904.33,0.00019489,2]
[346289670,1734874241599,-725.94,0.00019489,2]
[346289671,1734874241608,-2376.67,0.00019489,2]
[346289672,1734874241618,-2396.27,0.00019489,2]
[346289673,1734874241628,-500.0,0.00019489,2]
[346289674,1734874241638,-171.283561,0.00019489,2]
[346289675,1734874241647,-164.017402,0.00019489,2]
[346289676,1734874241657,-500.0,0.00019489,2]
[346289677,1734874241667,-9739.56,0.00019489,2]
[346289678,1734874241676,-158.012527,0.00019489,2]
[346289679,1734874241685,-189.150338,0.00019489,2]
[346289680,1734874241696,-155.224097,0.00019489,2]
[346289681,1734874241705,-500.0,0.00019489,2]
[346289682,1734874241715,-152.86,0.0001949,2]
[346289683,1734874241725,-152.86,0.0001949,2]
[346289684,1734874241734,-152.86,0.0001949,2]
[346289685,1734874241746,-152.86,0.0001949,2]
[346289686,1734874241757,-152.86,0.0001949,2]
[346289687,1734874241766,-152.86,0.0001949,2]
[346289688,1734874241775,-152.86,0.0001949,2]
[346289689,1734874241785,-152.86,0.0001949,2]
[346289690,1734874241794,-152.86,0.0001949,2]
[346289691,1734874241804,-152.86,0.0001949,2]
[346289692,1734874241814,-152.86,0.0001949,2]
[346289693,1734874241824,-152.86,0.0001949,2]
[346289694,1734874241833,-152.86,0.0001949,2]
[346289695,1734874241843,-539.74411422,0.0001949,2]
[346289696,1734874241852,-539.74411422,0.0001949,2]
[346289697,1734874241862,-539.74411422,0.0001949,2]
[346289698,1734874241872,-475508.68336865,0.0001949,5]
[346289699,1734874241882,-152.86,0.0001949,2]
[346289700,1734874241892,-152.86,0.0001949,2]
[346289701,1734874241901,-152.86,0.0001949,2]
[346289702,1734874241910,-152.86,0.0001949,2]
[346289703,1734874241919,-152.86,0.0001949,2]
[346289704,1734874241928,-152.86,0.0001949,2]
[346289705,1734874241937,-152.86,0.0001949,2]
[346289706,1734874241947,-4687.66125137,0.00019495,2]
[346289707,1734874241956,-7500.0,0.00019498,2]
[346289708,1734874241965,-496.502002,0.00019499,2]
[346289709,1734874241975,-500.0,0.00019499,2]
[346289710,1734874241984,-500.0,0.00019499,2]
[346289711,1734874241993,-677.21,0.00019499,2]
[346289712,1734874242003,-500.0,0.00019499,2]
[346289713,1734874242012,-2108.78,0.00019499,2]
[346289714,1734874242021,-509.68,0.00019499,2]
[346289715,1734874242032,-569.86,0.00019499,2]
[346289716,1734874242045,-6860.04,0.00019499,2]
[346289717,1734874242054,-500.0,0.00019499,2]
[346289718,1734874242063,-2738.67,0.00019499,2]
[346289719,1734874242073,-2738.67,0.00019499,2]
[346289720,1734874242082,-2738.67,0.00019499,2]
[346289721,1734874242092,-2738.67,0.00019499,2]
[346289722,1734874242101,-2738.67,0.00019499,2]
[346289723,1734874242111,-2738.67,0.00019499,2]
[346289724,1734874242120,-2738.67,0.00019499,2]
[346289725,1734874242130,-2738.67,0.00019499,2]
[346289726,1734874242138,-2738.67,0.00019499,2]
[346289727,1734874242148,-2738.67,0.00019499,2]
[346289728,1734874242157,-2738.67,0.00019499,2]
[346289729,1734874242166,-2738.67,0.00019499,2]
[346289730,1734874242175,-2738.67,0.00019499,2]
[346289731,1734874242184,-2738.67,0.00019499,2]
[346289732,1734874242194,-2738.67,0.00019499,2]
[346289733,1734874242204,-2738.67,0.00019499,2]
[346289734,1734874242213,-2738.67,0.00019499,2]
[346289735,1734874242223,-2738.67,0.00019499,2]
[346289736,1734874242232,-2738.67,0.00019499,2]
[346289737,1734874242242,-7382.02986692,0.00019499,2]
[346289738,1734874242252,-1084.64,0.00019499,2]
[346289739,1734874242262,-500.0,0.00019499,2]
[346289740,1734874242272,-1512.83,0.00019499,2]
[346289741,1734874242281,-723.91,0.00019499,2]
[346289742,1734874242290,-853.0,0.00019499,2]
[346289743,1734874242299,-3976.33,0.00019499,2]
[346289744,1734874242309,-1456.02,0.00019499,2]
[346289745,1734874242318,-8726.6,0.00019499,2]
[346289746,1734874242331,-1977.44,0.00019499,2]
[346289747,1734874242346,-710.92,0.00019499,2]
[346289748,1734874242355,-2200.39,0.00019499,2]
[346289749,1734874242365,-4967.15,0.00019499,2]
[346289750,1734874242374,-726.97,0.00019499,2]
[346289751,1734874242384,-500.0,0.00019499,2]
[346289752,1734874242393,-500.0,0.00019499,2]
[346289753,1734874242402,-2484.55,0.00019499,2]
[346289754,1734874242411,-500.0,0.00019499,2]
[346289755,1734874242420,-2487.32,0.00019499,2]
[346289756,1734874242431,-2486.7,0.00019499,2]
[346289757,1734874242441,-3498.61,0.00019499,2]
[346289758,1734874242450,-1149.89,0.00019499,2]
[346289759,1734874242460,-1225.12,0.00019499,2]
[346289760,1734874242469,-708.15,0.00019499,2]
[346289761,1734874242478,-500.0,0.00019499,2]
[346289762,1734874242488,-500.0,0.00019499,2]
[346289763,1734874242497,-507.12427976,0.00019499,2]
[346289764,1734874242506,-500.0,0.00019499,2]
[346289765,1734874242515,-1050.63,0.00019499,2]
[346289766,1734874242524,-5194.41337268,0.000195,2]
[346289767,1734874242534,-1875586.4037394,0.000195,3]
[346289768,1734874242543,-10456.73938205,0.000195,3]
[346289769,1734874242553,-4585943.0,0.000195,2]
[346289770,1734874242562,-152.166357,0.000195,2]
[346289771,1734874242571,-151.0,0.000195,2]
[346289772,1734874242581,-151.0,0.000195,2]
[346289773,1734874242590,-151.0,0.000195,2]
[346289774,1734874242599,-151.0,0.000195,2]
[346289775,1734874242608,-151.0,0.000195,2]
[346289776,1734874242619,-160.526585,0.000195,2]
[346289777,1734874242627,-285.593437,0.000195,2]
[346289778,1734874242636,-160.526585,0.000195,2]
[346289779,1734874242645,-285.593437,0.000195,2]
[346289780,1734874242655,-151.0,0.000195,2]
[346289781,1734874242664,-151.0,0.000195,2]
[346289782,1734874242674,-151.0,0.000195,2]
[346289783,1734874242683,-151.0,0.000195,2]
[346289784,1734874242694,-151.0,0.000195,2]
[346289785,1734874242703,-151.0,0.000195,2]
[346289786,1734874242712,-163.75896,0.000195,2]
[346289787,1734874242722,-151.0,0.000195,2]
[346289788,1734874242732,-151.0,0.000195,2]
[346289789,1734874242742,-151.0,0.000195,2]
[346289790,1734874242752,-151.0,0.000195,2]
[346289791,1734874242761,-151.0,0.000195,2]
[346289792,1734874242770,-151.0,0.000195,2]
[346289793,1734874242781,-151.0,0.000195,2]
[346289794,1734874242790,-151.0,0.000195,2]
[346289795,1734874242799,-152.961549,0.000195,2]
[346289796,1734874242809,-151.0,0.000195,2]
[346289797,1734874242818,-151.0,0.000195,2]
[346289798,1734874242827,-151.0,0.000195,2]
[346289799,1734874242836,-151.0,0.000195,2]
[346289800,1734874242846,-153.010399,0.000195,2]
[346289801,1734874242855,-152.695025,0.000195,2]
[346289802,1734874242864,-151.0,0.000195,2]
[346289803,1734874242873,-151.0,0.000195,2]
[346289804,1734874242883,-161.995222,0.000195,2]
[346289805,1734874242892,-161.995222,0.000195,2]
[346289806,1734874242901,-289.991816,0.000195,2]
[346289807,1734874242910,-289.991816,0.000195,2]
[346289808,1734874242919,-151.0,0.000195,2]
[346289809,1734874242928,-151.0,0.000195,2]
[346289810,1734874242937,-289.991816,0.000195,2]
[346289811,1734874242948,-161.995222,0.000195,2]
[346289812,1734874242957,-289.991816,0.000195,2]
[346289813,1734874242966,-161.995222,0.000195,2]
[346289814,1734874242975,-151.0,0.000195,2]
[346289815,1734874242984,-151.0,0.000195,2]
[346289816,1734874242993,-151.0,0.000195,2]
[346289817,1734874243002,-203.520135,0.000195,2]
[346289818,1734874243012,-151.0,0.000195,2]
[346289819,1734874243021,-151.0,0.000195,2]
[346289820,1734874243030,-151.0,0.000195,2]
[346289821,1734874243042,-151.0,0.000195,2]
[346289822,1734874243051,-207.0,0.0001951,2]
[346289823,1734874243061,-152.0,0.00019524,3]
[346289824,1734874243070,-153.0,0.00019556,2]
[346289825,1734874243081,-153.0,0.00019556,2]
[346289826,1734874243090,-153.0,0.00019556,2]
[346289827,1734874243100,-153.0,0.00019556,2]
[346289828,1734874243109,-153.0,0.00019556,2]
[346289829,1734874243120,-153.0,0.00019556,2]
[346289830,1734874243129,-153.0,0.00019556,2]
[346289831,1734874243139,-153.0,0.00019556,2]
[346289832,1734874243148,-153.0,0.00019556,2]
[346289833,1734874243157,-153.0,0.00019556,2]
[346289834,1734874243166,-153.0,0.00019556,2]
[346289835,1734874243175,-153.0,0.00019556,2]
[346289836,1734874243184,-153.0,0.00019556,2]
[346289837,1734874243194,-153.0,0.00019556,2]
[346289838,1734874243203,-153.0,0.00019556,2]
[346289839,1734874243212,-153.0,0.00019556,2]
[346289840,1734874243222,-153.0,0.00019556,2]
[346289841,1734874243231,-153.0,0.00019556,2]
[346289842,1734874243241,-153.0,0.00019556,2]
[346289843,1734874243250,-153.0,0.00019556,2]
[346289844,1734874243259,-153.0,0.00019556,2]
[346289845,1734874243268,-153.0,0.00019556,2]
[346289846,1734874243278,-153.0,0.00019556,2]
[346289847,1734874243287,-153.0,0.00019556,2]
[346289848,1734874243296,-153.0,0.00019556,2]
[346289849,1734874243305,-153.0,0.00019556,2]
[346289850,1734874243314,-153.0,0.00019556,2]
[346289851,1734874243323,-153.0,0.00019556,2]
[346289855,1734874243484,-153.0,0.00019556,2]
[346289856,1734874243495,-153.0,0.00019556,2]
[346289858,1734874243506,-153.0,0.00019556,2]
[346289859,1734874243515,-153.0,0.00019556,2]
[346289861,1734874243524,-153.0,0.00019556,2]
[346289863,1734874243533,-153.0,0.00019556,2]
[346289865,1734874243542,-153.0,0.00019556,2]
[346289867,1734874243551,-153.0,0.00019556,2]
[346289869,1734874243561,-153.0,0.00019556,2]
[346289871,1734874243570,-153.0,0.00019556,2]
[346289873,1734874243580,-153.0,0.00019556,2]
[346289875,1734874243589,-153.0,0.00019556,2]
[346289877,1734874243599,-153.0,0.00019556,2]
[346289879,1734874243609,-153.0,0.00019556,2]
[346289880,1734874243618,-153.0,0.00019556,2]
[346289882,1734874243628,-357.62221434,0.00019559,2]
[346289884,1734874243638,-157.35871216,0.00019562,2]
[346289886,1734874243648,-437.0,0.000196,2]
[346289888,1734874243657,-770.54,0.000196,2]
[346289890,1734874243666,-598.07,0.000196,2]
[346289892,1734874243675,-4767.30806922,0.000196,2]
[346289894,1734874243684,-4767.30806922,0.000196,2]
[346289895,1734874243694,-3167.0,0.000196,2]
[346289896,1734874243704,-4767.30806922,0.000196,2]
[346289897,1734874243713,-4767.30806922,0.000196,2]
[346289898,1734874243723,-4767.30806922,0.000196,2]
[346289899,1734874243732,-4767.30806922,0.000196,2]
[346289900,1734874243741,-4767.30806922,0.000196,2]
[346289901,1734874243750,-4767.30806922,0.000196,2]
[346289902,1734874243759,-4767.30806922,0.000196,2]
[346289903,1734874243768,-4767.30806922,0.000196,2]
[346289904,1734874243778,-4767.30806922,0.000196,2]
[346289905,1734874243787,-4767.30806922,0.000196,2]
[346289906,1734874243796,-4767.30806922,0.000196,2]
[346289907,1734874243806,-4767.30806922,0.000196,2]
[346289908,1734874243816,-4767.30806922,0.000196,2]
[346289909,1734874243825,-4767.30806922,0.000196,2]
[346289910,1734874243834,-4767.30806922,0.000196,2]
[346289911,1734874243844,-617055.34019287,0.000196,2]
[346289912,1734874243853,-151.0,0.000196,2]
[346289913,1734874243862,-151.0,0.000196,2]
[346289914,1734874243872,-161.995222,0.000196,2]
[346289915,1734874243883,-151.0,0.000196,2]
[346289916,1734874243893,-161.995222,0.000196,2]
[346289917,1734874243902,-152.768169,0.000196,2]
[346289918,1734874243912,-357.62221434,0.00019645,2]
[346289919,1734874243921,-420.17978238,0.0001965,2]
[346289920,1734874243931,-421.10247844,0.0001965,2]
[346289921,1734874243941,-424.896542,0.00019658,2]
[346289922,1734874243951,-153.61354733,0.00019665,2]
[346289923,1734874243960,-207.0,0.0001967,2]
[346289924,1734874243970,-9916.99826461,0.000197,2]
[346289925,1734874243980,-547.09,0.00019726,2]
[346289926,1734874243989,-500.0,0.00019726,2]
[346289927,1734874243999,-545.27,0.00019726,2]
[346289928,1734874244009,-739.75,0.00019726,2]
[346289929,1734874244019,-5171.68,0.00019726,2]